fUSD/lending_fUSD_20240404
["ID","MTS","AMOUNT","RATE_DAILY","PERIOD"]
[321468102,1712205068718,-580.11,0.00052054,120]
[321468103,1712205068728,-500.0,0.00052054,120]
[321468104,1712205068738,-580.11,0.00052054,120]
[321468105,1712205068749,-580.11,0.00052054,120]
[321468106,1712205068758,-1240.18,0.00052054,120]
[321468107,1712205068768,-580.11,0.00052054,120]
[321468108,1712205068778,-580.11,0.00052054,120]
[321468109,1712205068788,-580.11,0.00052054,120]
[321468110,1712205068797,-580.11,0.00052054,120]
[321468111,1712205068807,-580.12252329,0.00052054,120]
[321468112,1712205068816,-1005.94,0.00052054,120]
[321468113,1712205068827,-500.0,0.00052054,120]
[321468114,1712205068837,-193.775026,0.00052054,120]
[321468115,1712205068847,-1766.52,0.00052054,120]
[321468116,1712205068857,-193.775026,0.00052054,120]
[321468117,1712205068868,-193.775026,0.00052054,120]
[321468118,1712205068877,-500.0,0.00052054,120]
[321468119,1712205068887,-193.775026,0.00052054,120]
[321468120,1712205068897,-500.0,0.00052054,120]
[321468121,1712205068906,-500.0,0.00052054,120]
[321468122,1712205068916,-500.0,0.00052054,120]
[321468123,1712205068926,-193.775026,0.00052054,120]
[321468124,1712205068936,-193.775026,0.00052054,120]
[321468125,1712205068947,-193.775026,0.00052054,120]
[321468126,1712205068957,-193.77503,0.00052054,120]
[321468127,1712205068969,-500.0,0.00052054,120]
[321468128,1712205068978,-500.0,0.00052054,120]
[321468129,1712205068988,-500.0,0.00052054,120]
[321468130,1712205068999,-500.0,0.00052054,120]
[321468131,1712205069010,-500.0,0.00052054,120]
[321468132,1712205069020,-500.0,0.00052054,120]
[321468133,1712205069030,-515.02158542,0.00052054,120]
[321468134,1712205069041,-500.0,0.00052054,120]
[321468135,1712205069051,-500.0,0.00052054,120]
[321468136,1712205069062,-500.0,0.00052054,120]
[321468137,1712205069072,-508.46067826,0.00052054,120]
[321468138,1712205069085,-500.0,0.00052054,120]
[321468139,1712205069095,-519.24839937,0.00052054,120]
[321468140,1712205069106,-500.0,0.00052054,120]
[321468141,1712205069116,-500.0,0.00052054,120]
[321468142,1712205069126,-1375.95,0.00052054,120]
[321468143,1712205069137,-500.0,0.00052054,120]
[321468144,1712205069146,-528.59107529,0.00052054,120]
[321468145,1712205069157,-543.69791195,0.00052054,120]
[321468146,1712205069167,-338.216261,0.00052054,120]
[321468147,1712205069177,-338.216261,0.00052054,120]
[321468148,1712205069188,-500.0,0.00052054,120]
[321468149,1712205069199,-338.216261,0.00052054,120]
[321468150,1712205069486,-871.82,0.00052054,120]
[321468151,1712205069497,-500.0,0.00052054,120]
[321468152,1712205069507,-823.85,0.00052054,120]
[321468153,1712205069517,-338.216261,0.00052054,120]
[321468154,1712205069526,-1750.93,0.00052054,120]
[321468155,1712205069536,-338.216261,0.00052054,120]
[321468156,1712205069546,-559.75,0.00052054,120]
[321468157,1712205069556,-338.216261,0.00052054,120]
[321468158,1712205069566,-741.9,0.00052054,120]
[321468159,1712205069576,-338.216261,0.00052054,120]
[321468160,1712205069586,-338.216255,0.00052054,120]
[321468161,1712205069595,-723.7,0.00052054,120]
[321468162,1712205069605,-500.0,0.00052054,120]
[321468163,1712205069614,-678.18,0.00052054,120]
[321468164,1712205069624,-174.02207098,0.00052054,120]
[321468165,1712205069634,-500.0,0.00052054,120]
[321468166,1712205069644,-1906.89,0.00052054,120]
[321468167,1712205069653,-500.0,0.00052054,120]
[321468168,1712205069663,-509.43447578,0.00052054,120]
[321468169,1712205069673,-500.0,0.00052054,120]
[321468170,1712205069682,-223.76888,0.00052054,120]
[321468171,1712205069692,-223.76888,0.00052054,120]
[321468172,1712205069702,-631.14,0.00052054,120]
[321468173,1712205069714,-223.76888,0.00052054,120]
[321468174,1712205069724,-1180.82,0.00052054,120]
[321468175,1712205069733,-223.76888,0.00052054,120]
[321468176,1712205069742,-504.14929695,0.00052054,120]
[321468177,1712205069751,-223.76888,0.00052054,120]
[321468178,1712205069760,-223.76888,0.00052054,120]
[321468179,1712205069770,-223.76888,0.00052054,120]
[321468180,1712205069779,-223.768877,0.00052054,120]
[321468181,1712205069789,-1118.0,0.00052054,120]
[321468182,1712205069799,-500.0,0.00052054,120]
[321468183,1712205069809,-500.0,0.00052054,120]
[321468184,1712205069820,-500.0,0.00052054,120]
[321468185,1712205069830,-500.0,0.00052054,120]
[321468186,1712205069841,-728.77,0.00052054,120]
[321468187,1712205069852,-500.08725764,0.00052054,120]
[321468188,1712205069861,-500.0,0.00052054,120]
[321468189,1712205069871,-1251.78,0.00052054,120]
[321468190,1712205069882,-500.0,0.00052054,120]
[321468191,1712205069892,-1877.13,0.00052054,120]
[321468192,1712205069901,-500.0,0.00052054,120]
[321468193,1712205069911,-500.0,0.00052054,120]
[321468194,1712205069921,-500.0,0.00052054,120]
[321468195,1712205069931,-500.0,0.00052054,120]
[321468196,1712205069941,-1679.36,0.00052054,120]
[321468197,1712205069951,-750.539528,0.00052054,30]
[321468198,1712205069960,-750.539528,0.00052054,30]
[321468199,1712205069971,-512.07119527,0.00052054,120]
[321468200,1712205069981,-750.539528,0.00052054,30]
[321468201,1712205069990,-750.539528,0.00052054,30]
[321468202,1712205070000,-700.41,0.00052054,120]
[321468203,1712205070011,-750.539528,0.00052054,30]
[321468204,1712205070020,-750.539528,0.00052054,30]
[321468205,1712205070031,-750.539528,0.00052054,30]
[321468206,1712205070041,-750.539534,0.00052054,30]
[321468207,1712205070050,-974.99,0.00052054,120]
[321468208,1712205070060,-554.41690692,0.00052054,120]
[321468209,1712205070070,-159.935034,0.00052054,120]
[321468210,1712205070080,-505.88034902,0.00052054,120]
[321468211,1712205070090,-540.3550903,0.00052054,120]
[321468212,1712205070099,-500.0,0.00052054,120]
[321468213,1712205070109,-1427.78,0.00052054,120]
[321468214,1712205070119,-500.0,0.00052054,120]
[321468215,1712205070128,-1340.28,0.00052054,120]
[321468216,1712205070138,-500.0,0.00052054,120]
[321468217,1712205070148,-500.0,0.00052054,120]
[321468218,1712205070158,-539.48,0.00052054,120]
[321468219,1712205070168,-966.98,0.00052054,120]
[321468220,1712205070177,-500.0,0.00052054,120]
[321468221,1712205070187,-500.0,0.00052054,120]
[321468222,1712205070196,-500.0,0.00052054,120]
[321468223,1712205070206,-1783.96,0.00052054,120]
[321468224,1712205070217,-500.0,0.00052054,120]
[321468225,1712205070227,-1158.63,0.00052054,120]
[321468226,1712205070237,-508.0624078,0.00052054,120]
[321468227,1712205070247,-361.491422,0.00052054,120]
[321468228,1712205070258,-500.0,0.00052054,120]
[321468229,1712205070271,-361.491422,0.00052054,120]
[321468230,1712205070282,-500.0,0.00052054,120]
[321468231,1712205070292,-584.05,0.00052054,120]
[321468232,1712205070302,-500.0,0.00052054,120]
[321468233,1712205070315,-511.53893896,0.00052054,120]
[321468234,1712205070324,-500.0,0.00052054,2]
[321468235,1712205070334,-361.491422,0.00052054,120]
[321468236,1712205070346,-509.42092049,0.00052054,120]
[321468237,1712205070356,-500.0,0.00052054,120]
[321468238,1712205070366,-361.491427,0.00052054,120]
[321468239,1712205070376,-500.0,0.00052054,120]
[321468240,1712205070386,-500.0,0.00052054,120]
[321468241,1712205070395,-578.06,0.00052054,120]
[321468242,1712205070405,-666.0,0.00052054,2]
[321468243,1712205070415,-500.0,0.00052054,120]
[321468244,1712205070425,-500.0,0.00052054,120]
[321468245,1712205070435,-509.19843879,0.00052054,120]
[321468246,1712205070444,-959.58113459,0.00052054,120]
[321468247,1712205070454,-500.0,0.00052054,120]
[321468248,1712205070464,-500.0,0.00052054,120]
[321468249,1712205070473,-1053.65,0.00052054,120]
[321468250,1712205070482,-500.0,0.00052054,120]
[321468251,1712205070492,-500.0,0.00052054,120]
[321468252,1712205070501,-500.0,0.00052054,120]
[321468253,1712205070511,-506.67725501,0.00052054,120]
[321468254,1712205070520,-500.0,0.00052054,120]
[321468255,1712205070530,-511.66762442,0.00052054,120]
[321468256,1712205070540,-507.8989899,0.00052054,120]
[321468257,1712205070550,-517.85396345,0.00052054,120]
[321468258,1712205070559,-500.0,0.00052054,120]
[321468259,1712205070569,-500.0,0.00052054,120]
[321468260,1712205070578,-518.58514599,0.00052054,120]
[321468261,1712205070588,-516.72742246,0.00052054,120]
[321468262,1712205070597,-977.07,0.00052054,120]
[321468263,1712205070606,-500.0,0.00052054,120]
[321468264,1712205070616,-500.0,0.00052054,120]
[321468265,1712205070625,-508.58533254,0.00052054,120]
[321468266,1712205070635,-1293.92,0.00052054,120]
[321468267,1712205070645,-1027.41,0.00052054,120]
[321468268,1712205070655,-500.0,0.00052054,120]
[321468269,1712205070664,-792.68,0.00052054,120]
[321468270,1712205070674,-166.25778747,0.00052054,120]
[321468271,1712205070683,-151.0,0.00052054,120]
[321468272,1712205070692,-151.0,0.00052054,120]
[321468273,1712205070702,-500.0,0.00052054,120]
[321468274,1712205070711,-500.0,0.00052054,120]
[321468275,1712205070722,-1653.33,0.00052054,2]
[321468276,1712205070732,-500.0,0.00052054,120]
[321468277,1712205070741,-288.633246,0.00052054,120]
[321468278,1712205070751,-288.633246,0.00052054,120]
[321468279,1712205070761,-235.825494,0.00052054,120]
[321468280,1712205070770,-504.11432149,0.00052054,120]
[321468281,1712205070779,-500.0,0.00052054,120]
[321468282,1712205070789,-288.633246,0.00052054,120]
[321468283,1712205070798,-3984.13,0.00052054,120]
[321468284,1712205070807,-3984.13,0.00052054,120]
[321468285,1712205070817,-288.633238,0.00052054,120]
[321468286,1712205070827,-3984.13,0.00052054,120]
[321468287,1712205070837,-500.0,0.00052054,120]
[321468288,1712205070846,-3984.13,0.00052054,120]
[321468289,1712205070856,-3984.13,0.00052054,120]
[321468290,1712205070866,-3984.13,0.00052054,120]
[321468291,1712205070875,-500.0,0.00052054,120]
[321468292,1712205070885,-3984.13,0.00052054,120]
[321468293,1712205070894,-742.14,0.00052054,120]
[321468294,1712205070904,-3984.13,0.00052054,120]
[321468295,1712205070913,-3984.13,0.00052054,120]
[321468296,1712205070923,-3984.13,0.00052054,120]
[321468297,1712205070932,-500.0,0.00052054,120]
[321468298,1712205070941,-3984.13,0.00052054,120]
[321468299,1712205070950,-508.12006886,0.00052054,120]
[321468300,1712205070960,-500.0,0.00052054,120]
[321468301,1712205070970,-3984.13,0.00052054,120]
[321468302,1712205070979,-3984.13,0.00052054,120]
[321468303,1712205070989,-596.79,0.00052054,120]
[321468304,1712205070998,-3984.13,0.00052054,120]
[321468305,1712205071008,-515.21921932,0.00052054,120]
[321468306,1712205071019,-3984.13,0.00052054,120]
[321468307,1712205071030,-615.35,0.00052054,120]
[321468308,1712205071041,-3984.13,0.00052054,120]
[321468309,1712205071051,-3984.13,0.00052054,120]
[321468310,1712205071060,-506.07921373,0.00052054,120]
[321468311,1712205071070,-3984.13,0.00052054,120]
[321468312,1712205071080,-500.0,0.00052054,120]
[321468313,1712205071089,-3984.13,0.00052054,120]
[321468314,1712205071099,-500.0,0.00052054,120]
[321468315,1712205071109,-500.0,0.00052054,120]
[321468316,1712205071118,-3984.13,0.00052054,120]
[321468317,1712205071127,-3984.13,0.00052054,120]
[321468318,1712205071137,-3984.13,0.00052054,120]
[321468319,1712205071147,-3984.13,0.00052054,120]
[321468320,1712205071156,-507.43864774,0.00052054,120]
[321468321,1712205071166,-500.0,0.00052054,120]
[321468322,1712205071176,-3984.31695465,0.00052054,120]
[321468323,1712205071186,-6209.7,0.00052054,120]
[321468324,1712205071196,-526.34747989,0.00052054,120]
[321468325,1712205071205,-500.0,0.00052054,120]
[321468326,1712205071217,-517.44055632,0.00052054,120]
[321468327,1712205071226,-500.0,0.00052054,120]
[321468328,1712205071236,-500.0,0.00052054,120]
[321468329,1712205071245,-782.7,0.00052054,120]
[321468330,1712205071255,-500.0,0.00052054,120]
[321468331,1712205071267,-516.66569155,0.00052054,120]
[321468332,1712205071277,-811.28,0.00052054,120]
[321468333,1712205071289,-500.0,0.00052054,120]
[321468334,1712205071298,-2370.45,0.00052054,120]
[321468335,1712205071307,-511.50160768,0.00052054,120]
[321468336,1712205071317,-500.0,0.00052054,120]
[321468337,1712205071330,-500.0,0.00052054,120]
[321468338,1712205071340,-908.82,0.00052054,120]
[321468339,1712205071352,-506.5585151,0.00052054,120]
[321468340,1712205071363,-531.06744537,0.00052054,4]
[321468341,1712205071374,-509.19725786,0.00052054,120]
[321468342,1712205071384,-500.0,0.00052054,120]
[321468343,1712205071394,-512.04925839,0.00052054,120]
[321468344,1712205071406,-500.0,0.00052054,120]
[321468345,1712205071416,-500.0,0.00052054,120]
[321468346,1712205071425,-526.04323403,0.00052054,120]
[321468347,1712205071435,-5425.66,0.00052054,120]
[321468348,1712205071445,-500.0,0.00052054,120]
[321468349,1712205071455,-500.0,0.00052054,120]
[321468350,1712205071468,-524.82554287,0.00052054,120]
[321468351,1712205071477,-511.99094188,0.00052054,120]
[321468352,1712205071487,-516.15254146,0.00052054,120]
[321468353,1712205071497,-500.0,0.00052054,120]
[321468354,1712205071508,-1688.23,0.00052054,120]
[321468355,1712205071518,-567.30967671,0.00052054,120]
[321468356,1712205071527,-2287.71,0.00052054,120]
[321468357,1712205071536,-500.0,0.00052054,120]
[321468358,1712205071545,-500.0,0.00052054,120]
[321468359,1712205071555,-500.0,0.00052054,120]
[321468360,1712205071564,-500.0,0.00052054,120]
[321468361,1712205071574,-813.48,0.00052054,120]
[321468362,1712205071585,-627.13,0.00052054,120]
[321468363,1712205071594,-768.18,0.00052054,120]
[321468364,1712205071604,-1062.93,0.00052054,120]
[321468365,1712205071614,-510.90657903,0.00052054,120]
[321468366,1712205071623,-579.431877,0.00052054,120]
[321468367,1712205071633,-579.431877,0.00052054,120]
[321468368,1712205071642,-500.0,0.00052054,120]
[321468369,1712205071651,-511.34368876,0.00052054,120]
[321468370,1712205071661,-579.431877,0.00052054,120]
[321468371,1712205071671,-579.431879,0.00052054,120]
[321468372,1712205071681,-522.22346289,0.00052054,120]
[321468373,1712205071690,-500.0,0.00052054,120]
[321468374,1712205071700,-675.6,0.00052054,120]
[321468375,1712205071710,-500.0,0.00052054,120]
[321468376,1712205071721,-3516.97,0.00052054,120]
[321468377,1712205071730,-500.0,0.00052054,120]
[321468378,1712205071739,-500.0,0.00052054,120]
[321468379,1712205071748,-500.0,0.00052054,120]
[321468380,1712205071757,-230.324354,0.00052054,120]
[321468381,1712205071767,-2937.6,0.00052054,120]
[321468382,1712205071777,-230.324354,0.00052054,120]
[321468383,1712205071786,-500.0,0.00052054,120]
[321468384,1712205071796,-703.82,0.00052054,120]
[321468385,1712205071893,-355.90958646,0.00052054,120]
[321468386,1712205071903,-515.46748613,0.00052054,120]
[321468387,1712205071913,-3956.7,0.00052054,120]
[321468388,1712205071922,-1109.35,0.00052054,120]
[321468389,1712205071932,-230.324354,0.00052054,120]
[321468390,1712205071942,-1030.18,0.00052054,120]
[321468391,1712205071951,-230.324344,0.00052054,120]
[321468392,1712205071961,-641.98,0.00052054,120]
[321468393,1712205071973,-546.35,0.00052054,120]
[321468394,1712205071982,-1379.83,0.00052054,120]
[321468395,1712205071991,-500.0,0.00052054,120]
[321468396,1712205072000,-689.73,0.00052054,120]
[321468397,1712205072010,-520.4950552,0.00052054,120]
[321468398,1712205072019,-500.0,0.00052054,120]
[321468399,1712205072028,-500.0,0.00052054,120]
[321468400,1712205072037,-1626.2,0.00052054,120]
[321468401,1712205072047,-500.0,0.00052054,120]
[321468402,1712205072056,-5319.39,0.00052054,120]
[321468403,1712205072065,-797.4,0.00052054,120]
[321468404,1712205072075,-8838.72,0.00052054,120]
[321468405,1712205072084,-54319.25,0.00052054,120]
[321468406,1712205072093,-645.37,0.00052054,120]
[321468407,1712205072102,-674.64,0.00052054,120]
[321468408,1712205072111,-500.0,0.00052054,120]
[321468409,1712205072120,-855.27,0.00052054,120]
[321468410,1712205072130,-528.75898161,0.00052054,120]
[321468411,1712205072139,-512.34563538,0.00052054,120]
[321468412,1712205072147,-1951.61,0.00052054,120]
[321468413,1712205072157,-1172.77,0.00052054,120]
[321468414,1712205072167,-514.35052322,0.00052054,120]
[321468415,1712205072176,-1292.21,0.00052054,120]
[321468416,1712205072185,-858.40166,0.00052054,30]
[321468417,1712205072194,-500.0,0.00052054,120]
[321468418,1712205072203,-858.40166,0.00052054,30]
[321468419,1712205072212,-537.52145048,0.00052054,120]
[321468420,1712205072224,-6835.54,0.00052054,120]
[321468421,1712205072233,-500.0,0.00052054,120]
[321468422,1712205072242,-858.40166,0.00052054,30]
[321468423,1712205072251,-2636.23,0.00052054,120]
[321468424,1712205072261,-858.401654,0.00052054,30]
[321468425,1712205072270,-1926.24,0.00052054,120]
[321468426,1712205072280,-614.29,0.00052054,120]
[321468427,1712205072292,-1669.21,0.00052054,120]
[321468428,1712205072302,-2413.37,0.00052054,120]
[321468429,1712205072311,-560.72,0.00052054,120]
[321468430,1712205072321,-673.57,0.00052054,120]
[321468431,1712205072330,-500.0,0.00052054,120]
[321468432,1712205072339,-690.28,0.00052054,120]
[321468433,1712205072348,-507.32595285,0.00052054,120]
[321468434,1712205072357,-532.24,0.00052054,120]
[321468435,1712205072368,-500.0,0.00052054,120]
[321468436,1712205072377,-1990.16,0.00052054,120]
[321468437,1712205072386,-500.0,0.00052054,120]
[321468438,1712205072396,-500.0,0.00052054,120]
[321468439,1712205072405,-5699.44,0.00052054,120]
[321468440,1712205072414,-518.49222263,0.00052054,120]
[321468441,1712205072423,-500.0,0.00052054,120]
[321468442,1712205072433,-747.68,0.00052054,120]
[321468443,1712205072442,-500.0,0.00052054,120]
[321468444,1712205072452,-500.0,0.00052054,120]
[321468445,1712205072461,-515.71615796,0.00052054,120]
[321468446,1712205072472,-507.89007569,0.00052054,120]
[321468447,1712205072481,-871.75,0.00052054,120]
[321468448,1712205072490,-513.3815582,0.00052054,120]
[321468449,1712205072500,-500.0,0.00052054,120]
[321468450,1712205072508,-499.5486866,0.00052054,120]
[321468451,1712205072518,-1134.76,0.00052054,120]
[321468452,1712205072527,-1852.1,0.00052054,7]
[321468453,1712205072536,-2775.68,0.00052054,120]
[321468454,1712205072546,-503.04288499,0.00052054,120]
[321468455,1712205072555,-641.13194977,0.00052054,120]
[321468456,1712205072565,-6399.43,0.00052054,120]
[321468457,1712205072574,-500.0,0.00052054,120]
[321468458,1712205072583,-367.9304813,0.00052054,120]
[321468459,1712205072593,-500.0,0.00052054,120]
[321468460,1712205072602,-941.86,0.00052054,120]
[321468461,1712205072611,-500.0,0.00052054,120]
[321468462,1712205072620,-500.0,0.00052054,120]
[321468463,1712205072631,-500.0,0.00052054,120]
[321468464,1712205072640,-500.0,0.00052054,120]
[321468465,1712205072650,-1100.83,0.00052054,120]
[321468466,1712205072660,-507.62393873,0.00052054,120]
[321468467,1712205072670,-500.0,0.00052054,120]
[321468468,1712205072679,-8100.11,0.00052054,120]
[321468469,1712205072687,-500.0,0.00052054,120]
[321468470,1712205072697,-1665.56,0.00052054,120]
[321468471,1712205072708,-500.0,0.00052054,120]
[321468472,1712205072720,-516.68603271,0.00052054,120]
[321468473,1712205072729,-500.0,0.00052054,120]
[321468474,1712205072738,-500.0,0.00052054,120]
[321468475,1712205072746,-12647.89,0.00052054,120]
[321468476,1712205072755,-500.0,0.00052054,120]
[321468477,1712205072765,-500.0,0.00052054,120]
[321468478,1712205072774,-519.73308504,0.00052054,120]
[321468479,1712205072783,-500.0,0.00052054,120]
[321468480,1712205072792,-1265.23,0.00052054,120]
[321468481,1712205072801,-151.0,0.00052054,120]
[321468482,1712205072810,-500.0,0.00052054,120]
[321468483,1712205072819,-151.0,0.00052054,120]
[321468484,1712205072828,-500.0,0.00052054,120]
[321468485,1712205072837,-552.28,0.00052054,120]
[321468486,1712205072847,-500.0,0.00052054,120]
[321468487,1712205072857,-513.21000195,0.00052054,120]
[321468488,1712205072866,-1011.59,0.00052054,120]
[321468489,1712205072875,-151.0,0.00052054,120]
[321468490,1712205072884,-1253.38,0.00052054,120]
[321468491,1712205072893,-510.55507241,0.00052054,120]
[321468492,1712205072903,-500.0,0.00052054,120]
[321468493,1712205072912,-509.91727692,0.00052054,120]
[321468494,1712205072922,-500.0,0.00052054,120]
[321468495,1712205072933,-2437.96,0.00052054,120]
[321468496,1712205072943,-151.0,0.00052054,120]
[321468497,1712205072952,-500.0,0.00052054,120]
[321468498,1712205072961,-527.14622204,0.00052054,120]
[321468499,1712205072973,-3480.11,0.00052054,120]
[321468500,1712205072982,-777.91,0.00052054,120]
[321468501,1712205072992,-500.0,0.00052054,120]
[321468502,1712205073001,-500.0,0.00052054,120]
[321468503,1712205073011,-500.0,0.00052054,120]
[321468504,1712205073020,-500.0,0.00052054,120]
[321468505,1712205073029,-517.47162405,0.00052054,120]
[321468506,1712205073039,-1939.99,0.00052054,120]
[321468507,1712205073048,-965.52,0.00052054,120]
[321468508,1712205073057,-881.61,0.00052054,120]
[321468509,1712205073066,-500.0,0.00052054,120]
[321468510,1712205073075,-529.61259239,0.00052054,120]
[321468511,1712205073085,-500.0,0.00052054,120]
[321468512,1712205073094,-2571.32,0.00052054,120]
[321468513,1712205073104,-3309.16,0.00052054,120]
[321468514,1712205073114,-2476.89,0.00052054,120]
[321468515,1712205073123,-500.0,0.00052054,120]
[321468516,1712205073132,-500.0,0.00052054,120]
[321468517,1712205073141,-588.17,0.00052054,120]
[321468518,1712205073151,-1648.98,0.00052054,120]
[321468519,1712205073160,-500.0,0.00052054,120]
[321468520,1712205073170,-519.42684758,0.00052054,120]
[321468521,1712205073179,-1872.11,0.00052054,120]
[321468522,1712205073188,-527.77900755,0.00052054,120]
[321468523,1712205073198,-2494.98,0.00052054,120]
[321468524,1712205073207,-571.44,0.00052054,120]
[321468525,1712205073219,-488.34447123,0.00052054,120]
[321468526,1712205073228,-500.0,0.00052054,120]
[321468527,1712205073237,-771.63,0.00052054,120]
[321468528,1712205073246,-4066.04,0.00052054,120]
[321468529,1712205073255,-500.0,0.00052054,120]
[321468530,1712205073270,-500.0,0.00052054,120]
[321468531,1712205073279,-500.0,0.00052054,120]
[321468532,1712205073288,-508.31172372,0.00052054,120]
[321468533,1712205073298,-2429.57,0.00052054,120]
[321468534,1712205073310,-1719.99,0.00052054,120]
[321468535,1712205073320,-2376.39,0.00052054,120]
[321468536,1712205073330,-500.0,0.00052054,120]
[321468537,1712205073340,-3283.89,0.00052054,120]
[321468538,1712205073350,-5606.0,0.00052054,120]
[321468539,1712205073361,-627.51,0.00052054,120]
[321468540,1712205073371,-658.56,0.00052054,120]
[321468541,1712205073380,-1697.6,0.00052054,120]
[321468542,1712205073389,-680.97,0.00052054,120]
[321468543,1712205073398,-503.41698682,0.00052054,120]
[321468544,1712205073407,-507.84467544,0.00052054,120]
[321468545,1712205073417,-1208.03,0.00052054,120]
[321468546,1712205073426,-515.1950196,0.00052054,120]
[321468547,1712205073435,-902.7,0.00052054,120]
[321468548,1712205073445,-200.701774,0.00052054,120]
[321468549,1712205073454,-752.9,0.00052054,120]
[321468550,1712205073463,-200.701774,0.00052054,120]
[321468551,1712205073474,-151.0,0.00052054,120]
[321468552,1712205073484,-500.0,0.00052054,120]
[321468553,1712205073493,-151.0,0.00052054,120]
[321468554,1712205073502,-2345.81,0.00052054,120]
[321468555,1712205073512,-2703.79,0.00052054,120]
[321468556,1712205073521,-1470.5,0.00052054,120]
[321468557,1712205073532,-1000.0,0.00052054,14]
[321468558,1712205073542,-500.0,0.00052054,120]
[321468559,1712205073550,-200.701774,0.00052054,120]
[321468560,1712205073560,-200.701765,0.00052054,120]
[321468561,1712205073569,-500.0,0.00052054,120]
[321468562,1712205073579,-3729.05,0.00052054,120]
[321468563,1712205073588,-2947.7,0.00052054,120]
[321468564,1712205073597,-564.92799941,0.00052054,120]
[321468565,1712205073607,-3940.03,0.00052054,120]
[321468566,1712205073616,-516.3403734,0.00052054,120]
[321468567,1712205073625,-500.0,0.00052054,120]
[321468568,1712205073634,-543.39601668,0.00052054,120]
[321468569,1712205073643,-595.65,0.00052054,120]
[321468570,1712205073652,-508.70775008,0.00052054,120]
[321468571,1712205073662,-500.0,0.00052054,120]
[321468572,1712205073671,-3031.42,0.00052054,120]
[321468573,1712205073681,-3107.18,0.00052054,120]
[321468574,1712205073690,-500.0,0.00052054,120]
[321468575,1712205073700,-924.61,0.00052054,120]
[321468576,1712205073709,-500.0,0.00052054,120]
[321468577,1712205073723,-3097.18,0.00052054,120]
[321468578,1712205073733,-521.34914222,0.00052054,120]
[321468579,1712205073742,-500.0,0.00052054,120]
[321468580,1712205073751,-500.0,0.00052054,120]
[321468581,1712205073760,-151.0,0.00052054,120]
[321468582,1712205073769,-790.05,0.00052054,120]
[321468583,1712205073779,-151.0,0.00052054,120]
[321468584,1712205073788,-1346.47,0.00052054,120]
[321468585,1712205073797,-503.79454178,0.00052054,120]
[321468586,1712205073807,-500.0,0.00052054,120]
[321468587,1712205073816,-648.73,0.00052054,120]
[321468588,1712205073825,-2784.95,0.00052054,120]
[321468589,1712205073834,-500.0,0.00052054,120]
[321468590,1712205073843,-501.10770543,0.00052054,120]
[321468591,1712205073853,-500.0,0.00052054,120]
[321468592,1712205073862,-1479.97,0.00052054,120]
[321468593,1712205073871,-500.0,0.00052054,120]
[321468594,1712205073881,-500.0,0.00052054,120]
[321468595,1712205073890,-3455.77,0.00052054,120]
[321468596,1712205073899,-500.0,0.00052054,120]
[321468597,1712205073908,-500.0,0.00052054,120]
[321468598,1712205073918,-3175.76,0.00052054,120]
[321468599,1712205073927,-2739.86,0.00052054,120]
[321468600,1712205073936,-1313.71,0.00052054,120]
[321468601,1712205073945,-507.25553199,0.00052054,120]